[Event "Chess.com Global Championship Knockout"]
[Site "Chess.com"]
[Date "2022.10.02"]
[Round "3"]
[White "So, Wesley"]
[Black "Xiong, Jeffery"]
[Result "1-0"]
[WhiteElo "2771"]
[BlackElo "2690"]
[ECO "B13"]
[EventDate "2022.??.??"]
[Annotator "rafael"]
[PlyCount "69"]
[Beauty "8041789404168"]
[EventType "team-tourn"]
[TimeControl "900+2"]

{So and Xiong are two great chess players and the match between them was very close with two wins each during normal time. So's victory in the first game was his best in the match.} 
1.e4 c6 2.d4 d5 3.exd5 {When Bobby Fischer played this variation, no one paid much attention to it, but it looks like he was many years ahead of his time. Check the wonderful game Fischer vs. Petrosian, Belgrade 1970.} 3...cxd5 4.Bd3 Nf6 5.c3 Bg4 6.Qb3 Qc7 {A natural move, although the queen will have some problems on that square, as we will see later.} 7.h3 Bh5 {A pawn sacrifice.} ( 7...Bd7 {has been played by some very strong chess players.} ) 8.Ne2 {So decides to play solid.} ( 8.g4 {is a critical move. Computers like White's position, but Black's results in practice are excellent.} 8...Bg6 9.Bxg6 hxg6 10.g5 Nfd7 11.Qxd5 Nc6 12.Ne2 e5 13.Be3 {with a complicated game. Black has decent compensation for the pawn.} ) 8...Bxe2 {A natural move, after all the h5-bishop may have some problems with the g4-advance or an attack with the knight. White's surprising next move, however, guarantees an advantage. The alternatives 8...Nc6 and 8...e6 are better.} ( 8...Nc6 ) ( 8...e6 ) 9.Bf4 $1 {A new move. Is it possible that So had this move prepared $2 This is a nice intermediate move that develops the bishop exploiting a tactical idea.} ( 9.Bxe2 e6 {With a normal position.} ) 9...Qd7 ( 9...Qxf4 $2 10.Qxb7 Bxd3 $2 11.Qc8# ) 10.Bxe2 Nc6 11.Nd2 {The opening was a success for White. So has the bishop pair and better development. The knight now heads towards the e5-square, causing problems for the queen on d7.} 11...e6 12.Nf3 {The position is difficult and Xiong decides to sacrifice a pawn. Objectively, however, there is not enough compensation.} 12...Bd6 $2 ( 12...Be7 13.Ne5 {is unpleasant.} ) ( 12...a6 {This is a better move, minimizing the effects of Ne5, but White has an advantage after} 13.Ne5 Nxe5 14.dxe5 Ne4 15.c4 $1 ) 13.Bxd6 Qxd6 14.Qxb7 Rb8 15.Qa6 O-O ( 15...Rxb2 $2 {This move loses material due to} 16.Bb5 ) 16.Rb1 Ne4 17.O-O f5 18.Qa4 ( 18.Qd3 {It seems best to bring the queen closer to the king with this move.} ) 18...Ne7 ( 18...g5 $1 {is possible, trying a desperate attack.} ) 19.Ne5 $6 ( 19.c4 $1 {is correct, starting the advance of the pawns on the queenside.} 19...Ng6 20.c5 ) 19...Rb7 $6 ( 19...Nd2 $2 20.Nd7 ) ( 19...Ng6 $1 {is the best move.} 20.Nxg6 ( 20.Nd7 $2 Nf4 ) 20...hxg6 21.Qc2 Qf4 $1 22.Rbd1 g5 {followed by g4, with some compensation.} ) 20.Qc2 Ng6 21.Nxg6 hxg6 22.Bd3 $1 {Now White is ready to capture the knight that is so disturbing. The position is winning, since Black is a pawn down and has a damaged pawn structure.} 22...g5 23.Rbe1 Rfb8 24.b3 Rc7 25.Bxe4 dxe4 ( 25...fxe4 26.f3 {with a winning position.} ) 26.Qd2 Qf4 27.Re3 Rbc8 28.Rd1 Kh7 29.Qe1 g4 30.hxg4 Qxg4 31.Rh3+ Kg8 32.f3 $1 Qg6 33.fxe4 fxe4 34.c4 Qg4 35.Rh4 {The e4-pawn falls.} 1-0

[Event "Chess.com Global Championship Knockout"]
[Site "Chess.com"]
[Date "2022.10.12"]
[Round "3"]
[White "Nepomniachtchi, Ian"]
[Black "Radjabov, Teimour"]
[Result "0-1"]
[WhiteElo "2793"]
[BlackElo "2747"]
[ECO "E20"]
[EventDate "2022.??.??"]
[Annotator "rafael"]
[PlyCount "64"]
[Beauty "8250095351835"]
[EventType "team-tourn"]
[TimeControl "900+2"]

1.d4 Nf6 2.c4 e6 3.Nc3 Bb4 4.f3 {One of the most aggressive variations to face the Nimzo-Indian Defense.} 4...c5 {This is a very popular move these days, although there is nothing wrong with the old 5...d5 move.} ( 4...d5 ) 5.d5 d6 6.e4 O-O ( 6...b5 $5 {is also a move with many supporters.} ) 7.Bf4 $2 $146 {A strange new move, which immediately leads to trouble for White. It's hard to say why Nepomniachtchi chose it.} ( 7.Ne2 {is the main move. A recent example:} 7...b5 8.Nf4 exd5 9.Nxd5 Nxd5 10.Qxd5 Qb6 $1 11.cxb5 Bb7 12.Qd2 d5 {with a chaotic position and chances for both sides. Caruana - Sevian, Riga 2021.} ) 7...Re8 ( 7...exd5 {is even better. Black has a powerful initiative after} 8.cxd5 Nh5 9.Be3 f5 ) 8.dxe6 {Another compromising move.} ( 8.Ne2 {looks more solid, although Black is doing very well after} 8...exd5 9.cxd5 Nh5 {followed by 10...f5.} ) 8...Bxe6 9.Bd3 {Taking the pawn on d6 doesn't help White either.} ( 9.Qxd6 Qa5 {with brutal compensation for the pawn.} ) ( 9.Bxd6 Nc6 ) 9...Nc6 10.Ne2 Ne5 $6 ( 10...Nh5 {is more accurate, avoiding the exchange of the bishop for the knight.} ) 11.b3 $6 ( 11.Bxe5 $1 {This is an ugly and difficult move to play, but it's the best option to neutralize Black's initiative.} 11...dxe5 12.Qc2 {With chances to balance the game, since White is close to installing the knight on d5.} ( 12.O-O Bxc3 $1 13.Nxc3 Qd4+ 14.Rf2 Bxc4 {and Black wins a pawn.} ) ) 11...Nh5 12.Bg3 $2 ( 12.Bxe5 {once again, it's necessary to resort to this ugly move.} ) 12...Nxg3 13.hxg3 Qg5 {Black could immediately play two ideas that will be shown later: put the queen on f6 or blow up the position with the b5 and d5 breaks.} ( 13...Qf6 14.Rc1 b5 $1 {With similar play to the game.} ) ( 13...b5 $1 {is the most forceful.} 14.cxb5 c4 15.bxc4 Qb6 {with a devastating initiative, thanks to the dark squares.} ) 14.Qd2 ( 14.f4 $2 Bxc3+ 15.Kf1 ( 15.Nxc3 Qxg3+ ) 15...Qf6 16.Nxc3 Nxc4 $1 17.bxc4 Qxc3 {and Black wins material.} ) 14...Qf6 15.Rc1 ( 15.O-O {The white king finds no refuge even after castling.} 15...b5 $1 16.cxb5 $6 c4 $1 17.bxc4 Bc5+ {and the black bishop enters the attack, deciding the game.} ) 15...b5 $1 {It's necessary to destroy the white center to exploit the advantage in development.} 16.cxb5 ( 16.f4 {would be better.} ) 16...d5 $1 17.exd5 Nxd3+ 18.Qxd3 Bf5 19.Qd2 Re5 $1 {A very accurate move.} 20.O-O ( 20.Kf2 Rae8 ( 20...c4 {This is also very good.} 21.bxc4 Bc5+ 22.Nd4 Rae8 23.Rhd1 Re3 $1 {with a decisive attack.} ) 21.Rhe1 c4 $1 22.bxc4 Bc5+ 23.Kf1 Be3 {with a massacre.} ) ( 20.f4 Ree8 {and now the bishop has the g4-square.} ) 20...Rxe2 $1 21.Qxe2 Bxc3 22.Rxc3 {Otherwise, the bishop is brought to d4.} 22...Qxc3 {Black has a decisive material advantage, and Radjabov doesn't give his opponent any chance of redemption.} 23.Rd1 Kf8 $1 {With the idea of taking the rook to e8.} 24.d6 Re8 25.Qf2 Bd7 26.Kh2 Re6 27.g4 g5 $1 {A classy move, avoiding the f3-f4 advance.} ( 27...Qe5+ 28.f4 ) 28.a4 Qe5+ 29.Kg1 Rxd6 30.Rc1 Rd4 31.Qc2 Kg7 32.Qxc5 Rd1+ {A well-known tactical shot decides the game.} ( 32...Rd1+ 33.Rxd1 ( 33.Kf2 Qe1# ) 33...Qxc5+ ) 0-1

[Event "U.S. Chess Championship 2022"]
[Site "Chess.com"]
[Date "2022.10.08"]
[Round "4"]
[White "Niemann, Hans Moke"]
[Black "Caruana, Fabiano"]
[Result "0-1"]
[WhiteElo "2699"]
[BlackElo "2763"]
[ECO "E36"]
[EventDate "2022.??.??"]
[Annotator "rafael"]
[PlyCount "160"]
[Beauty "5291823333898"]
[EventType "swiss"]
[EventRounds "11"]
[TimeControl "5400+30"]

1.d4 Nf6 2.c4 e6 3.Nc3 Bb4 4.Qc2 O-O 5.a3 Bxc3+ 6.Qxc3 d5 7.Bg5 h6 {7...dxc3 and 7...c5 are popular alternatives.} ( 7...dxc4 ) ( 7...c5 8.dxc5 d4 ) 8.Bxf6 ( 8.Bh4 {is imprecise because Black gets a good game after} 8...c5 $1 9.dxc5 d4 {and the insertion of h6-Bh4 favors Black, compared to normal lines.} ) 8...Qxf6 9.Nf3 dxc4 10.Qxc4 Nc6 11.Qc3 {This move is necessary to fight the e6-e5 advance. All this is still theory.} 11...Re8 12.Rd1 e5 $1 13.d5 Nb8 14.e3 ( 14.Qxc7 {Of course, accepting the pawn is not a good idea.} 14...Na6 {with a lot of compensation.} ) 14...Bf5 {The computer's favorite move. Caruana, as always, shows impeccable preparation.} ( 14...Bg4 15.Be2 Nd7 16.O-O Bxf3 17.Bxf3 e4 18.Qxc7 $1 exf3 19.Qxd7 fxg2 20.Rfe1 Qxb2 {and Black can probably equalize.} ) 15.Be2 Nd7 16.O-O Rac8 17.a4 {A new and somewhat strange move. Niemann spent some time here, so I believe this was not preparation.} ( 17.Bb5 {Has already been played.} 17...a6 18.Bxd7 Bxd7 19.Nd2 {with equal chances.} ) 17...c6 18.d6 {A brave move. The d6-pawn is passed, but it can also become a weakness.} ( 18.dxc6 Rxc6 19.Qb4 {and Black's position is a little more comfortable, but nothing too worrisome.} ) 18...Rcd8 19.a5 {White's idea pops up. The pawn heads for a6, breaking Black's structure.} 19...Bg4 20.h3 $2 {This move leads to problems.} ( 20.Qb4 $1 {is necessary with an equal position after} 20...e4 21.Nd4 ) 20...Bxf3 $1 21.gxf3 {A sad necessity. The endgame is much better for Black after 21.Bxf3.} ( 21.Bxf3 e4 $1 {The d6-pawn will be lost sooner or later.} ) 21...Nf8 22.Qb4 $2 ( 22.a6 $1 {is the best chance, for example:} 22...bxa6 23.Qxc6 Re6 24.Qxa6 Rexd6 25.Qxa7 Qh4 26.Rxd6 Rxd6 27.Kh2 Rd2 28.Qa6 Rxb2 {and the material is greatly reduced. White must get the draw.} ) 22...Rd7 {Now Caruana has a much better position.} 23.Rd2 Ng6 $2 {Here and in the next moves, it would be better to play a7-a6 and avoid White's counterplay on the queenside.} ( 23...a6 $1 ) 24.Rfd1 ( 24.a6 $1 {White should have taken the chance to advance the pawn.} ) 24...Nh4 ( 24...a6 $1 ) 25.Qg4 Re6 26.Kf1 Nf5 27.a6 $1 bxa6 28.Bxa6 $6 ( 28.Qe4 $1 {Is a pretty straight path to equality.} 28...Rdxd6 29.Rxd6 Nxd6 30.Qxc6 ) 28...Rdxd6 29.Rxd6 Nxd6 30.Bd3 $2 ( 30.Qb4 {is better.} ) 30...g6 31.h4 h5 32.Qg3 Kg7 {Black has a solid extra pawn, and White's queen is misplaced. The position is winning, but we still have some adventures.} 33.e4 Qe7 ( 33...Nb5 {is the clearest path to victory.} ) 34.Qg5 Qb7 35.Qc1 Qb4 ( 35...Rf6 $1 36.Kg2 Qb3 {with a winning position.} ) 36.Qd2 Qxd2 37.Rxd2 Kf6 $6 ( 37...Nb5 $1 38.Bxb5 cxb5 {and the computer indicates Black's victory. Not all rook endings are drawn $1} ) 38.b4 g5 $6 {now the win becomes problematic.} ( 38...Nb5 $1 ) 39.Ra2 $1 {White finally gets some counterplay.} 39...Nc8 40.Ba6 Nd6 41.Be2 Nc8 42.f4 $5 {Niemann surprisingly decides not to repeat moves.} ( 42.Ba6 Nb6 {Caruana would probably try this, but White has good drawing chances.} ) 42...gxh4 43.Bxh5 Nd6 44.Rxa7 ( 44.fxe5+ {is more accurate.} 44...Rxe5 45.Bf3 Nxe4 46.Kg2 {and the draw is close.} ) 44...exf4 45.f3 Re5 46.Bg4 Nc4 47.Kg2 $2 {After this mistake Black is winning again, and this evaluation doesn't change anymore. A theoretical draw could be reached after} ( 47.Ra6 $1 Ne3+ 48.Kf2 Nxg4+ ( 48...Rb5 49.Rxc6+ Kg7 50.Bh3 Rxb4 51.Rc5 ) 49.fxg4 Rxe4 50.Rxc6+ Kg5 51.Rc7 Rxb4 52.Rxf7 Kxg4 53.Rg7+ {and this position is a famous draw, even though Black has two extra pawns.} ) 47...Rb5 {Now Black has time to bring the knight to e5, defending the c6-pawn.} 48.Ra4 Ne5 49.Kh3 Kg5 50.Ra8 Rxb4 51.Rh8 Kf6 52.Rh5 Rb5 53.Rf5+ Ke7 54.Bh5 ( 54.Rxf4 Nd3 55.Rf5 Rxf5 56.Bxf5 c5 {and the c-pawn decides the game.} ) 54...Ng6 ( 54...Ke6 {with the idea of advancing the c-pawn that leads to an easy victory, for example:} 55.Rxf4 Nd3 $1 56.Bxf7+ Ke7 {and the bishop is lost.} ) 55.Bxg6 fxg6 56.Rxf4 g5 57.Rg4 {You always have to be careful in rook endings, but Caruana shows good technique.} 57...Kf6 58.f4 Rb3+ 59.Kh2 Rb2+ 60.Kh3 Rb3+ 61.Kh2 gxf4 62.Rxf4+ Ke5 63.Rxh4 Re3 {As the tablebase is quick to show, Black is winning.} 64.Rh6 Rc3 65.Kg2 ( 65.Rh4 Kd4 66.Kg2 Re3 $1 {and white's king is too far away.} ) 65...Kxe4 66.Rd6 Ke3 67.Re6+ Kd2 68.Rd6+ Kc2 69.Kf2 c5 70.Rc6 Kd2 71.Rc8 c4 72.Rc7 Rc2 73.Rd7+ Kc3+ 74.Ke1 ( 74.Ke3 Rc1 75.Ke2 Kc2 $19 ) 74...Rh2 75.Kd1 Rh1+ 76.Ke2 Kc2 77.Rd2+ Kb3 78.Rd8 c3 79.Rb8+ Kc2 80.Ra8 Rh7 {The game will soon arrive at the famous Lucena position. Niemann decides to resign before that.} 0-1

[Event "U.S. Chess Championship 2022"]
[Site "Chess.com"]
[Date "2022.10.09"]
[Round "5"]
[White "Liang, Awonder"]
[Black "Aronian, Levon"]
[Result "1-0"]
[WhiteElo "2608"]
[BlackElo "2755"]
[ECO "C44"]
[EventDate "2022.??.??"]
[Annotator "rafael"]
[PlyCount "63"]
[Beauty "8248639887435"]
[EventType "swiss"]
[EventRounds "11"]
[TimeControl "5400+30"]

{Who would have thought that an old gambit could surprise the most expert 1.e4 e5 player in the world, GM Aronian $2 Chess opening theory is far from exhausted; you just need to to dig in the right place and have a little luck. \"Just that.\"} 
1.e4 e5 2.Nf3 Nc6 3.d4 exd4 4.Bc4 Bc5 5.Ng5 $5 {This is called the \"Sarratt Variation.\" I learned this from my friend, GM Mekhitarian.} 5...Nh6 6.Nxf7 Nxf7 7.Bxf7+ Kxf7 8.Qh5+ g6 9.Qxc5 d5 $1 {This move is considered the most accurate.} ( 9...d6 {has also been tried many times.} ) 10.c3 ( 10.O-O dxe4 11.c3 {Transposes to the game.} ) 10...dxe4 11.O-O Re8 $6 {[%emt 0:00:05] Played after some thought. I was pretty sure I'd seen a position like this played in a major tournament recently. After straining my not-prodigious memory a lot, I remembered the game Mamedov vs. Anand, played on October $1} ( 11...Qd6 {is probably the clearest path to equality. A recent example followed:} 12.Qxd6 cxd6 13.cxd4 Nxd4 14.Nc3 Bg4 15.Nxe4 Nc2 16.Nxd6+ Ke6 17.Bf4 Nxa1 18.Rxa1 Rhf8 19.Bg3 {Samsonkin-Narayanan, Ottawa 2022.} ) ( 11...Bf5 {is also playable.} ) 12.cxd4 Qxd4 ( 12...Nxd4 {was played in Kovalev-Kramnik, Dortmund 2018. I read the analysis of this game by legendary GM Mekhitarian, and I admit that's why I know the name of the gambit.} 13.Be3 $1 {This is a clear improvement for White, and my computer is quite happy.} ) 13.Qg5 Nb4 $2 {A novelty that was clearly not prepared in a home laboratory.} ( 13...Bf5 {In his analysis of Kovalev-Kramnik, the legendary Mekhitarian shows a game from 1853 with this move.} 14.Nc3 $1 {with interesting compensation for the pawn.} ( 14.Bd2 $6 {Shumov-Urusov, St. Petersburg 1853.} ) ) ( 13...Qf6 {was Anand's choice, but he got in trouble after} 14.Qg3 Nd4 15.Nc3 c6 $2 16.Bg5 {Mamedov vs. Anand, ECC 2022.} ) 14.Bd2 $1 {Finally Liang started to think, indicating that he hadn't analyzed Black's preceding move. But he finds the refutation.} 14...Qd6 $2 ( 14...Nc2 {The point is that this move loses after} 15.Bc3 Qd6 16.Qh6 Nxa1 17.Qxh7+ Ke6 18.Na3 {With a devastating attack in exchange for a minimal material investment.} ) ( 14...Kg8 {is a better defense.} ) 15.Nc3 {White is already winning.} 15...c6 ( 15...Qf6 16.Qg3 ) 16.Rad1 {Other moves also lead to victory.} ( 16.Rae1 Bf5 17.g4 $1 h6 18.Qxh6 Rh8 19.Bf4 $3 {This difficult move is the only way to win.} 19...Rxh6 ( 19...Qf6 20.Qg5 Qxg5 21.Bxg5 Bxg4 22.Rxe4 {and White wins material.} ) 20.Bxd6 Nd3 21.Re3 Bxg4 22.Nxe4 {and the attack continues even in the endgame.} 22...Nxb2 23.Rb1 Nc4 24.Rxb7+ Kg8 25.Nf6+ Kh8 26.Ree7 $1 Nxd6 27.Rh7+ Rxh7 28.Rxh7# ) ( 16.f3 exf3 17.Rxf3+ Kg8 18.Raf1 {is also very good.} ) 16...Bf5 ( 16...Qf6 17.Qh6 Qg7 ( 17...Kg8 18.Nxe4 $1 Rxe4 19.Bc3 {is winning.} ) 18.Qh4 {and the attack continues.} ) ( 16...Qe7 17.Qh6 Kg8 18.Bg5 Qg7 19.Qh4 {with a strong attack.} ) 17.g4 h6 18.Qh4 $1 {Now Black's position collapses.} ( 18.Qxh6 $2 Rh8 ) 18...Bc8 19.Bxh6 Nd3 20.Bg5 Qe5 21.f3 $1 {Opening the f-file.} 21...Rh8 22.fxe4+ Kg8 ( 22...Ke8 23.Rxd3 $1 Rxh4 24.Rd8# ) 23.Bh6 Qd4+ 24.Kh1 Be6 25.Qg5 Bf7 26.Rxf7 $1 Rxh6 ( 26...Kxf7 27.Rf1+ Ke8 ( 27...Nf2+ 28.Kg2 ) 28.Qxg6+ Kd8 29.Bg7 {and the game is decided.} ) 27.Rxd3 $1 {Other moves also win, but this one is elegant.} 27...Qxd3 28.Qf6 {Surprisingly Black's queen has no check.} 28...Rxh2+ 29.Kxh2 Qd2+ 30.Kg1 Qc1+ 31.Kf2 Qh6 ( 31...Qd2+ 32.Ne2 ) 32.g5 {A convincing victory.} 1-0